[Event "GER-ch Youth U12W 2020"]
[Site "Willingen"]
[Date "2020.10.28"]
[Round "2.13"]
[White "Bako, Evelin"]
[Black "Eichhorn, Mathilda"]
[Result "1-0"]
[ECO "C07"]
[WhiteElo "1192"]
[BlackElo "1560"]
[Annotator "NA RC"]
[PlyCount "71"]
[EventDate "2020.10.27"]
[EventType "swiss"]
[EventRounds "7"]
[EventCountry "GER"]
[SourceTitle "playchess.com"]
[Source "ChessBase"]
[SourceQuality "1"]
[TimeControl "40/5400+30:1800+30"]

1. d4 {[%emt 0:00:00]} e6 {[%emt 0:00:00]} 2. e4 {[%emt 0:00:00]} d5 {[%emt 0:00:00]} 3. Nd2 {[%emt 0:00:17]} c5 {[%emt 0:02:41]} 4. Ngf3 {[%emt 0:01:33]} Nc6 {[%emt 0:03:17]} 5. c3 {[%emt 0:02:39]} cxd4 {[%emt 0:07:30]} 6. Nxd4 {[%emt 0:01:27]} Nge7 {[%emt 0:17:37]} 7. exd5 {[%emt 0:04:09]} Nxd4 {[%emt 0:09:35]} 8. cxd4 {[%emt 0:00:21]} Qxd5 {[%emt 0:04:01]} 9. Nf3 {[%emt 0:01:02]} Nc6 {[%emt 0:04:35]} 10. a3 {[%emt 0:04:45]} Be7 {[%emt 0:02:20]} 11. Bd3 {[%emt 0:00:38]} O-O {[%emt 0:00:42]} 12. Be3 {[%emt 0:04:53]} Rd8 {[%emt 0:06:02]} 13. O-O {[%emt 0:00:39]} e5 {[%emt 0:05:29]} 14. Qc2 {[%emt 0:04:43]} h6 {[%emt 0:09:34]} 15. Bh7+ {[%emt 0:01:30]} Kh8 {[%emt 0:00:52]} 16. dxe5 {[%emt 0:01:17]} Nxe5 {[%emt 0:03:07]} 17. Be4 {[%emt 0:03:25]} Nxf3+ {[%emt 0:02:28]} 18. Bxf3 {[%emt 0:01:22]} Qe5 {[%emt 0:04:57]} 19. Qb3 {[%emt 0:02:46]} Bd6 {[%emt 0:05:11]} 20. g3 {[%emt 0:01:02]} Rd7 {[%emt 0:02:23]} 21. Rad1 {[%emt 0:01:55]} Bc5 {[%emt 0:01:56]} 22. Rxd7 {[%emt 0:02:01]} Bxd7 {[%emt 0:00:25]} 23. Bxc5 {[%emt 0:00:30]} Qxc5 {[%emt 0:00:27]} 24. Qxb7 {[%emt 0:00:33]} Rd8 {[%emt 0:00:23]} 25. Rd1 {[%emt 0:03:15]} Bh3 {[%emt 0:06:27]} 26. Rxd8+ {[%emt 0:00:15]} Kh7 {[%emt 0:00:03]} 27. Be4+ {[%emt 0:00:33]} f5 {[%emt 0:00:29]} 28. Bf3 {[%emt 0:01:02]} Qe5 {[%emt 0:00:16]} 29. Rd1 {[%emt 0:02:29]} f4 {[%emt 0:00:54]} 30. Qe4+ {[%emt 0:00:16]} Qxe4 {[%emt 0:00:11]} 31. Bxe4+ {[%emt 0:00:07]} g6 {[%emt 0:00:13]} 32. gxf4 {[%emt 0:00:10]} Bg4 {[%emt 0:00:07]} 33. Rc1 {[%emt 0:00:21]} h5 {[%emt 0:00:28]} 34. Rc7+ {[%emt 0:00:29]} Kh6 {[%emt 0:00:04]} 35. Rc6 {[%emt 0:00:44]} Kh7 {[%emt 0:00:00]} 36. Rxg6 {[%emt 0:00:00]} 1-0

[Event "GER-ch Youth U12W 2020"]
[Site "Willingen"]
[Date "2020.10.28"]
[Round "2.14"]
[White "Czäczine, Laura"]
[Black "Moldovan, Tatiana"]
[Result "1-0"]
[ECO "B28"]
[WhiteElo "1309"]
[BlackElo "1516"]
[Annotator "NA RC"]
[PlyCount "111"]
[EventDate "2020.10.27"]
[EventType "swiss"]
[EventRounds "7"]
[EventCountry "GER"]
[SourceTitle "playchess.com"]
[Source "ChessBase"]
[SourceQuality "1"]
[TimeControl "40/5400+30:1800+30"]

1. e4 {[%emt 0:00:00]} c5 {[%emt 0:04:59]} 2. Nf3 {[%emt 0:00:00]} a6 {[%emt 0:00:14]} 3. c3 {[%emt 0:00:00]} e6 {[%emt 0:00:22]} 4. d4 {[%emt 0:00:16]} d5 {[%emt 0:00:20]} 5. e5 {[%emt 0:00:09]} Bd7 {[%emt 0:00:18]} 6. a3 {[%emt 0:00:15]} cxd4 {[%emt 0:00:25]} 7. cxd4 {[%emt 0:00:14]} Bb5 {[%emt 0:00:26]} 8. Bxb5+ {[%emt 0:01:33]} axb5 {[%emt 0:00:18]} 9. O-O {[%emt 0:00:15]} Nc6 {[%emt 0:01:17]} 10. Nc3 {[%emt 0:02:12]} b4 {[%emt 0:03:02]} 11. Nb5 {[%emt 0:00:12]} bxa3 {[%emt 0:01:22]} 12. bxa3 {[%emt 0:00:26]} Na7 {[%emt 0:03:23]} 13. Nc3 {[%emt 0:03:02]} h6 {[%emt 0:07:43]} 14. Qa4+ {[%emt 0:01:18]} Nc6 {[%emt 0:00:30]} 15. Qb5 {[%emt 0:00:20]} Qd7 {[%emt 0:01:11]} 16. Bb2 {[%emt 0:03:15]} Ra5 {[%emt 0:00:28]} 17. Qd3 {[%emt 0:01:07]} Nge7 {[%emt 0:00:40]} 18. Nb5 {[%emt 0:03:16]} Ng6 {[%emt 0:01:41]} 19. g3 {[%emt 0:01:55]} Be7 {[%emt 0:06:14]} 20. Rfb1 {[%emt 0:03:44]} Ncxe5 {[%emt 0:01:50]} 21. dxe5 {[%emt 0:03:08]} Rxb5 {[%emt 0:00:19]} 22. Nd4 {[%emt 0:02:19]} Rb6 {[%emt 0:00:58]} 23. Nc2 {[%emt 0:02:10]} O-O {[%emt 0:01:02]} 24. a4 {[%emt 0:00:27]} Rc8 {[%emt 0:02:02]} 25. a5 {[%emt 0:01:21]} Rb5 {[%emt 0:01:11]} 26. Nd4 {[%emt 0:02:33]} Rb4 {[%emt 0:00:41]} 27. Nc2 {[%emt 0:01:28]} Rbc4 {[%emt 0:01:02]} 28. Ne3 {[%emt 0:00:42]} R4c6 {[%emt 0:00:13]} 29. Bd4 {[%emt 0:01:29]} Qc7 {[%emt 0:01:37]} 30. f4 {[%emt 0:02:14]} Bc5 {[%emt 0:01:32]} 31. Bxc5 {[%emt 0:01:11]} Rxc5 {[%emt 0:00:14]} 32. Kg2 {[%emt 0:00:48]} Rc3 {[%emt 0:01:01]} 33. Qe2 {[%emt 0:00:38]} d4 {[%emt 0:00:17]} 34. Qf3 {[%emt 0:01:47]} dxe3 {[%emt 0:00:48]} 35. Rxb7 {[%emt 0:00:13]} Qc6 {[%emt 0:00:27]} 36. Qxc6 {[%emt 0:01:07]} R3xc6 {[%emt 0:00:05]} 37. Kf3 {[%emt 0:00:37]} R6c7 {[%emt 0:00:27]} 38. a6 {[%emt 0:00:23]} Rxb7 {[%emt 0:00:18]} 39. axb7 Rb8 {[%emt 0:00:06]} 40. Ra8 {[%emt 0:00:13]} Rxa8 {[%emt 0:00:51]} 41. bxa8=Q+ {[%emt 0:30:14]} Nf8 {[%emt 0:30:13]} 42. Kxe3 {[%emt 0:00:09]} g6 {[%emt 0:00:45]} 43. g4 {[%emt 0:00:29]} Kg7 {[%emt 0:00:06]} 44. g5 {[%emt 0:00:18]} h5 {[%emt 0:00:08]} 45. Qd8 {[%emt 0:00:23]} Kg8 {[%emt 0:00:31]} 46. Kd4 {[%emt 0:00:37]} Kg7 {[%emt 0:00:17]} 47. Kc5 {[%emt 0:00:42]} Kg8 {[%emt 0:00:47]} 48. Kd6 {[%emt 0:00:20]} Kg7 {[%emt 0:00:37]} 49. Qf6+ {[%emt 0:00:17]} Kg8 {[%emt 0:00:33]} 50. Ke7 {[%emt 0:00:26]} Nh7 {[%emt 0:00:26]} 51. Qxf7+ {[%emt 0:00:10]} Kh8 {[%emt 0:00:08]} 52. Qxg6 {[%emt 0:00:18]} h4 {[%emt 0:00:14]} 53. h3 {[%emt 0:00:11]} Nf8 {[%emt 0:00:31]} 54. Qh6+ {[%emt 0:00:17]} Nh7 {[%emt 0:00:07]} 55. g6 {[%emt 0:00:18]} Kg8 {[%emt 0:00:11]} 56. Qxh7# 1-0

[Event "GER-ch Youth U12W 2020"]
[Site "Willingen"]
[Date "2020.10.28"]
[Round "2.15"]
[White "Stepanjan, Marianne"]
[Black "Hoffmann, Sophia"]
[Result "1-0"]
[ECO "C89"]
[WhiteElo "1351"]
[BlackElo "1345"]
[Annotator "NA RC"]
[PlyCount "139"]
[EventDate "2020.10.27"]
[EventType "swiss"]
[EventRounds "7"]
[EventCountry "GER"]
[SourceTitle "playchess.com"]
[Source "ChessBase"]
[SourceQuality "1"]
[TimeControl "40/5400+30:1800+30"]

1. e4 {[%emt 0:00:00]} e5 {[%emt 0:00:00]} 2. Nf3 {[%emt 0:00:00]} Nc6 {[%emt 0:00:00]} 3. Bb5 {[%emt 0:00:00]} a6 {[%emt 0:00:00]} 4. Ba4 {[%emt 0:00:45]} Nf6 {[%emt 0:00:59]} 5. O-O {[%emt 0:00:59]} b5 {[%emt 0:03:27]} 6. Bb3 {[%emt 0:00:27]} Be7 {[%emt 0:00:23]} 7. Re1 {[%emt 0:02:21]} O-O {[%emt 0:01:25]} 8. c3 {[%emt 0:00:58]} d5 {[%emt 0:01:27]} 9. exd5 Nxd5 10. Nxe5 {[%emt 0:02:32]} Nxe5 {[%emt 0:00:50]} 11. Rxe5 {[%emt 0:00:22]} Nf6 {[%emt 0:00:21]} 12. d4 {[%emt 0:02:09]} Bd6 {[%emt 0:00:43]} 13. Re1 {[%emt 0:01:38]} Ng4 {[%emt 0:01:34]} 14. h3 {[%emt 0:00:52]} Nxf2 {[%emt 0:01:23]} 15. Kxf2 {[%emt 0:06:17]} Qh4+ {[%emt 0:06:20]} 16. Kg1 {[%emt 0:09:39]} Bxh3 {[%emt 0:32:27]} 17. Bd5 {[%emt 0:14:17]} Bg4 {[%emt 0:13:50]} 18. Bf3 {[%emt 0:14:23]} Bxf3 {[%emt 0:12:38]} 19. gxf3 {[%emt 0:06:40]} Qh2+ {[%emt 0:04:46]} 20. Kf1 {[%emt 0:00:19]} Qh1+ {[%emt 0:06:27]} 21. Ke2 {[%emt 0:08:37]} Rae8+ {[%emt 0:01:27]} 22. Be3 {[%emt 0:00:43]} Qg2+ {[%emt 0:01:48]} 23. Kd3 {[%emt 0:01:31]} Qxb2 {[%emt 0:02:32]} 24. Nd2 {[%emt 0:08:06]} b4 {[%emt 0:03:41]} 25. Qb3 {[%emt 0:01:28]} bxc3 {[%emt 0:01:15]} 26. Qxb2 {[%emt 0:00:58]} cxb2 {[%emt 0:00:04]} 27. Rab1 {[%emt 0:00:12]} Rb8 {[%emt 0:00:23]} 28. Nc4 {[%emt 0:00:38]} f5 {[%emt 0:01:26]} 29. Rxb2 {[%emt 0:01:25]} Rxb2 {[%emt 0:00:32]} 30. Nxb2 f4 {[%emt 0:00:39]} 31. Bd2 {[%emt 0:01:02]} Kf7 {[%emt 0:00:50]} 32. Nc4 {[%emt 0:01:16]} g5 {[%emt 0:00:23]} 33. Ne5+ {[%emt 0:01:04]} Bxe5 {[%emt 0:00:55]} 34. dxe5 {[%emt 0:01:51]} Ke6 {[%emt 0:00:13]} 35. Bc3 {[%emt 0:01:48]} h5 {[%emt 0:01:10]} 36. Rg1 {[%emt 0:02:35]} Rg8 {[%emt 0:00:25]} 37. Ke4 {[%emt 0:03:48]} c6 {[%emt 0:00:55]} 38. Bd2 {[%emt 0:00:49]} Rd8 {[%emt 0:00:25]} 39. Bb4 {[%emt 0:03:53]} Rg8 {[%emt 0:00:26]} 40. Rd1 {[%emt 0:01:31]} Rb8 {[%emt 0:00:30]} 41. Rd6+ {[%emt 0:30:34]} Kf7 {[%emt 0:30:20]} 42. e6+ {[%emt 0:00:53]} Ke8 {[%emt 0:00:30]} 43. Ba3 {[%emt 0:01:10]} Rd8 {[%emt 0:00:00]} 44. Rxc6 {[%emt 0:00:00]} Ra8 {[%emt 0:00:00]} 45. e7 {[%emt 0:00:00]} Kf7 {[%emt 0:00:00]} 46. Rd6 {[%emt 0:00:00]} Re8 {[%emt 0:00:00]} 47. Rd8 {[%emt 0:00:00]} Rxe7+ {[%emt 0:00:00]} 48. Bxe7 {[%emt 0:00:00]} Kxe7 {[%emt 0:00:00]} 49. Rh8 {[%emt 0:00:00]} h4 {[%emt 0:00:00]} 50. Kf5 {[%emt 0:00:00]} Kd6 {[%emt 0:00:00]} 51. Kxg5 {[%emt 0:00:00]} Kc5 {[%emt 0:00:00]} 52. Rxh4 {[%emt 0:00:00]} Kb4 {[%emt 0:00:00]} 53. Rxf4+ {[%emt 0:00:00]} Ka3 {[%emt 0:00:00]} 54. Re4 {[%emt 0:00:00]} Kxa2 {[%emt 0:00:00]} 55. Ra4+ {[%emt 0:00:00]} Kb3 {[%emt 0:00:00]} 56. Rxa6 {[%emt 0:00:00]} Kc4 {[%emt 0:00:00]} 57. Re6 {[%emt 0:00:00]} Kd5 {[%emt 0:00:00]} 58. Re1 {[%emt 0:00:00]} Kd4 {[%emt 0:00:00]} 59. f4 {[%emt 0:00:00]} Kd3 {[%emt 0:00:00]} 60. f5 {[%emt 0:00:00]} Kd2 {[%emt 0:00:00]} 61. Re8 {[%emt 0:00:00]} Kd3 {[%emt 0:00:00]} 62. f6 {[%emt 0:00:00]} Kd4 {[%emt 0:00:00]} 63. f7 {[%emt 0:00:00]} Kd5 {[%emt 0:00:00]} 64. f8=Q {[%emt 0:00:00]} Kd4 {[%emt 0:00:00]} 65. Qd6+ {[%emt 0:00:00]} Kc4 {[%emt 0:00:00]} 66. Rc8+ {[%emt 0:00:00]} Kb5 {[%emt 0:00:00]} 67. Qc5+ {[%emt 0:00:00]} Ka6 {[%emt 0:00:00]} 68. Qb4 {[%emt 0:00:00]} Ka7 {[%emt 0:00:00]} 69. Rc1 {[%emt 0:00:00]} Ka6 {[%emt 0:00:00]} 70. Ra1# 1-0

[Event "GER-ch Youth U12W 2020"]
[Site "Willingen"]
[Date "2020.10.28"]
[Round "2.16"]
[White "Müller, Riyanna"]
[Black "Flierl, Veronika"]
[Result "1-0"]
[ECO "B19"]
[WhiteElo "1460"]
[BlackElo "1404"]
[Annotator "NA RC"]
[PlyCount "49"]
[EventDate "2020.10.27"]
[EventType "swiss"]
[EventRounds "7"]
[EventCountry "GER"]
[SourceTitle "playchess.com"]
[Source "ChessBase"]
[SourceQuality "1"]
[TimeControl "40/5400+30:1800+30"]

1. e4 {[%emt 0:00:00]} c6 {[%emt 0:00:00]} 2. d4 {[%emt 0:00:04]} d5 {[%emt 0:00:00]} 3. Nc3 {[%emt 0:00:47]} dxe4 {[%emt 0:00:00]} 4. Nxe4 {[%emt 0:01:06]} Bf5 {[%emt 0:00:00]} 5. Ng3 {[%emt 0:00:46]} Bg6 {[%emt 0:00:00]} 6. h4 {[%emt 0:00:53]} h6 {[%emt 0:00:05]} 7. Nf3 {[%emt 0:00:36]} Nd7 {[%emt 0:00:06]} 8. h5 {[%emt 0:01:25]} Bh7 {[%emt 0:00:05]} 9. Bd3 {[%emt 0:01:07]} Bxd3 {[%emt 0:00:07]} 10. Qxd3 {[%emt 0:00:50]} e6 {[%emt 0:00:12]} 11. Be3 {[%emt 0:01:54]} Ngf6 {[%emt 0:01:17]} 12. O-O-O {[%emt 0:01:25]} Qc7 {[%emt 0:00:45]} 13. Kb1 {[%emt 0:02:16]} O-O-O {[%emt 0:00:31]} 14. c4 {[%emt 0:01:42]} Bd6 {[%emt 0:04:07]} 15. Ne4 {[%emt 0:02:12]} Nxe4 {[%emt 0:02:05]} 16. Qxe4 {[%emt 0:01:04]} Nf6 {[%emt 0:01:04]} 17. Qc2 {[%emt 0:02:48]} Kb8 {[%emt 0:06:21]} 18. g3 {[%emt 0:02:38]} Ka8 {[%emt 0:02:23]} 19. Qa4 {[%emt 0:05:58]} Rc8 {[%emt 0:12:25]} 20. c5 {[%emt 0:07:59]} Be7 {[%emt 0:00:47]} 21. Bf4 {[%emt 0:01:37]} Qd8 {[%emt 0:01:06]} 22. Rd3 {[%emt 0:01:30]} Nd5 {[%emt 0:07:29]} 23. Qxa7+ {[%emt 0:01:25]} Kxa7 {[%emt 0:00:20]} 24. Ra3+ {[%emt 0:00:10]} Qa5 {[%emt 0:00:07]} 25. Rxa5# 1-0

[Event "GER-ch Youth U12W 2020"]
[Site "Willingen"]
[Date "2020.10.28"]
[Round "2.17"]
[White "Pröttel, Ela"]
[Black "Hergenröder, Cora"]
[Result "1/2-1/2"]
[ECO "B01"]
[WhiteElo "1229"]
[BlackElo "1422"]
[Annotator "NA RC"]
[PlyCount "115"]
[EventDate "2020.10.27"]
[EventType "swiss"]
[EventRounds "7"]
[EventCountry "GER"]
[SourceTitle "playchess.com"]
[Source "ChessBase"]
[SourceQuality "1"]
[TimeControl "40/5400+30:1800+30"]

1. e4 {[%emt 0:00:00]} d5 {[%emt 0:00:00]} 2. exd5 {[%emt 0:00:00]} Qxd5 {[%emt 0:00:00]} 3. Nf3 {[%emt 0:00:00]} Bg4 {[%emt 0:00:28]} 4. Be2 {[%emt 0:00:01]} Nc6 {[%emt 0:01:30]} 5. d4 {[%emt 0:28:56]} e6 {[%emt 0:21:38]} 6. O-O {[%emt 0:16:07]} O-O-O {[%emt 0:19:41]} 7. c3 {[%emt 0:20:06]} Nf6 {[%emt 0:15:51]} 8. Ng5 {[%emt 0:12:48]} Bxe2 {[%emt 0:01:29]} 9. Qxe2 {[%emt 0:00:20]} Rd7 {[%emt 0:04:21]} 10. Nd2 {[%emt 0:05:49]} Qxg5 {[%emt 0:05:38]} 11. a4 {[%emt 0:08:43]} Bd6 {[%emt 0:02:46]} 12. Nc4 {[%emt 0:01:08]} Qh5 {[%emt 0:01:25]} 13. Nxd6+ {[%emt 0:00:56]} Rxd6 {[%emt 0:00:16]} 14. Qd3 {[%emt 0:00:38]} e5 {[%emt 0:02:17]} 15. Qg3 {[%emt 0:00:44]} exd4 {[%emt 0:01:17]} 16. Bf4 {[%emt 0:00:22]} Rd7 {[%emt 0:03:47]} 17. Qxg7 {[%emt 0:00:31]} Rg8 {[%emt 0:03:31]} 18. Qxf6 {[%emt 0:00:39]} Qg4 {[%emt 0:01:04]} 19. Bg3 {[%emt 0:00:26]} dxc3 {[%emt 0:02:15]} 20. bxc3 {[%emt 0:00:52]} h5 {[%emt 0:03:17]} 21. Qh4 {[%emt 0:00:44]} Qg6 {[%emt 0:02:35]} 22. Kh1 {[%emt 0:00:31]} f5 {[%emt 0:01:24]} 23. Rg1 {[%emt 0:00:17]} Rd3 {[%emt 0:01:10]} 24. Qf4 {[%emt 0:00:34]} Rg7 {[%emt 0:02:03]} 25. Rac1 {[%emt 0:00:39]} Qg4 {[%emt 0:01:23]} 26. Qxg4 {[%emt 0:00:22]} hxg4 {[%emt 0:00:12]} 27. Rgd1 {[%emt 0:00:19]} Rxd1+ {[%emt 0:00:18]} 28. Rxd1 {[%emt 0:00:06]} Re7 {[%emt 0:00:26]} 29. h3 {[%emt 0:00:38]} gxh3 {[%emt 0:00:34]} 30. gxh3 {[%emt 0:00:06]} Rf7 {[%emt 0:00:51]} 31. f4 {[%emt 0:00:30]} a6 {[%emt 0:00:29]} 32. h4 {[%emt 0:00:26]} b5 {[%emt 0:00:34]} 33. axb5 {[%emt 0:00:21]} axb5 {[%emt 0:00:10]} 34. Rb1 {[%emt 0:00:52]} Re7 {[%emt 0:00:57]} 35. Rxb5 {[%emt 0:00:23]} Re3 {[%emt 0:00:15]} 36. Bf2 {[%emt 0:00:33]} Rf3 {[%emt 0:00:22]} 37. Kg2 {[%emt 0:00:51]} Rxc3 {[%emt 0:00:15]} 38. Rc5 {[%emt 0:01:05]} Rxc5 {[%emt 0:01:25]} 39. Bxc5 {[%emt 0:00:07]} Kd7 {[%emt 0:00:13]} 40. h5 {[%emt 0:00:22]} Ke8 {[%emt 0:00:20]} 41. Kh3 {[%emt 0:30:31]} Kf7 {[%emt 0:31:26]} 42. Kh4 {[%emt 0:00:50]} Nd8 {[%emt 0:00:17]} 43. Bd4 {[%emt 0:00:39]} Kg8 {[%emt 0:00:00]} 44. Be5 {[%emt 0:00:00]} c5 {[%emt 0:00:00]} 45. Kg5 {[%emt 0:00:00]} Kh7 {[%emt 0:00:00]} 46. Kxf5 {[%emt 0:00:00]} c4 {[%emt 0:00:00]} 47. Bc3 {[%emt 0:00:00]} Kh6 {[%emt 0:00:00]} 48. Kg4 {[%emt 0:00:00]} Kh7 {[%emt 0:00:00]} 49. f5 {[%emt 0:00:14]} Nf7 {[%emt 0:00:00]} 50. f6 {[%emt 0:02:30]} Nd6 {[%emt 0:00:00]} 51. Kf4 {[%emt 0:00:32]} Kg8 {[%emt 0:00:00]} 52. Bd2 {[%emt 0:00:39]} Kf7 {[%emt 0:00:00]} 53. Ke5 {[%emt 0:00:42]} Ne8 {[%emt 0:00:00]} 54. Bg5 {[%emt 0:00:23]} c3 {[%emt 0:00:00]} 55. h6 {[%emt 0:00:19]} Nxf6 {[%emt 0:00:00]} 56. Bxf6 {[%emt 0:00:09]} Kg6 {[%emt 0:00:00]} 57. h7 {[%emt 0:01:32]} Kxh7 {[%emt 0:00:00]} 58. Bg5 {[%emt 0:00:07]} 1/2-1/2

[Event "GER-ch Youth U12W 2020"]
[Site "Willingen"]
[Date "2020.10.28"]
[Round "2.18"]
[White "Heutling, Sarah"]
[Black "Bangiev, Katharina"]
[Result "0-1"]
[ECO "B06"]
[WhiteElo "1197"]
[BlackElo "1539"]
[Annotator "NA RC"]
[PlyCount "120"]
[EventDate "2020.10.27"]
[EventType "swiss"]
[EventRounds "7"]
[EventCountry "GER"]
[SourceTitle "playchess.com"]
[Source "ChessBase"]
[SourceQuality "1"]
[TimeControl "40/5400+30:1800+30"]

1. e4 {[%emt 0:00:00]} d6 {[%emt 0:00:00]} 2. d4 {[%emt 0:00:00]} g6 {[%emt 0:00:00]} 3. Nc3 {[%emt 0:00:00]} Bg7 {[%emt 0:00:00]} 4. Be3 {[%emt 0:00:00]} Nf6 {[%emt 0:00:00]} 5. Nge2 {[%emt 0:00:04]} O-O {[%emt 0:00:20]} 6. h3 {[%emt 0:00:35]} Nc6 {[%emt 0:00:23]} 7. g4 {[%emt 0:00:13]} e5 {[%emt 0:01:54]} 8. Bg2 {[%emt 0:00:41]} exd4 {[%emt 0:04:45]} 9. Nxd4 {[%emt 0:06:37]} Nxd4 {[%emt 0:05:19]} 10. Bxd4 {[%emt 0:00:12]} Re8 {[%emt 0:06:37]} 11. O-O {[%emt 0:03:51]} Be6 {[%emt 0:07:09]} 12. Qd2 {[%emt 0:07:05]} c6 {[%emt 0:08:26]} 13. a4 {[%emt 0:01:22]} Bc4 {[%emt 0:07:40]} 14. Rfe1 {[%emt 0:01:27]} c5 {[%emt 0:02:09]} 15. Be3 {[%emt 0:01:02]} Re6 {[%emt 0:05:51]} 16. b3 {[%emt 0:01:30]} Ba6 {[%emt 0:00:06]} 17. f4 {[%emt 0:03:00]} Nd7 {[%emt 0:04:39]} 18. Rad1 {[%emt 0:07:11]} Bxc3 {[%emt 0:04:10]} 19. Qxc3 {[%emt 0:00:52]} Qc7 {[%emt 0:01:39]} 20. f5 {[%emt 0:10:50]} Re7 {[%emt 0:02:45]} 21. Bf1 {[%emt 0:03:26]} Bxf1 {[%emt 0:00:41]} 22. Rxf1 {[%emt 0:00:09]} Rxe4 {[%emt 0:01:12]} 23. Bh6 {[%emt 0:02:50]} Ne5 {[%emt 0:05:38]} 24. Rde1 {[%emt 0:06:45]} Rxe1 {[%emt 0:01:27]} 25. Rxe1 {[%emt 0:02:39]} Re8 {[%emt 0:01:51]} 26. Kg2 {[%emt 0:04:06]} Qc6+ {[%emt 0:03:13]} 27. Kg3 {[%emt 0:00:25]} Qb6 {[%emt 0:10:39]} 28. h4 {[%emt 0:01:10]} Qb4 {[%emt 0:01:17]} 29. Qxb4 {[%emt 0:01:17]} cxb4 {[%emt 0:00:07]} 30. f6 {[%emt 0:01:20]} Re6 {[%emt 0:02:04]} 31. Bg5 {[%emt 0:02:29]} Nc6 {[%emt 0:03:33]} 32. Rf1 {[%emt 0:01:32]} Nd4 {[%emt 0:01:34]} 33. Rf2 {[%emt 0:03:30]} Ne2+ {[%emt 0:01:58]} 34. Kf3 {[%emt 0:01:35]} Nd4+ {[%emt 0:00:06]} 35. Kg3 {[%emt 0:00:22]} Re2 {[%emt 0:01:59]} 36. Rf4 {[%emt 0:01:22]} Nc6 {[%emt 0:02:34]} 37. h5 {[%emt 0:01:48]} Rxc2 {[%emt 0:01:59]} 38. Re4 {[%emt 0:00:13]} Ne5 {[%emt 0:00:10]} 39. Rxb4 {[%emt 0:00:16]} Rc3+ {[%emt 0:00:42]} 40. Kg2 {[%emt 0:00:55]} Rc2+ {[%emt 0:00:11]} 41. Kf1 {[%emt 0:30:16]} Rc7 {[%emt 0:32:21]} 42. Be3 {[%emt 0:01:02]} b6 {[%emt 0:00:00]} 43. a5 {[%emt 0:00:00]} Rb7 {[%emt 0:00:00]} 44. a6 {[%emt 0:00:00]} Rc7 {[%emt 0:00:00]} 45. Rb5 {[%emt 0:00:00]} Kf8 {[%emt 0:00:00]} 46. Bxb6 {[%emt 0:00:00]} axb6 {[%emt 0:00:00]} 47. Rxb6 {[%emt 0:00:00]} Ke8 {[%emt 0:00:00]} 48. Rxd6 {[%emt 0:00:00]} Rd7 {[%emt 0:00:00]} 49. Rb6 {[%emt 0:00:00]} Ra7 {[%emt 0:00:00]} 50. b4 {[%emt 0:00:00]} Kd7 {[%emt 0:00:00]} 51. Rb7+ {[%emt 0:01:07]} Rxb7 {[%emt 0:00:00]} 52. axb7 {[%emt 0:00:07]} Kc7 {[%emt 0:00:00]} 53. hxg6 {[%emt 0:00:50]} hxg6 {[%emt 0:00:00]} 54. g5 {[%emt 0:00:20]} Nf3 {[%emt 0:00:00]} 55. Kf2 {[%emt 0:00:17]} Nxg5 {[%emt 0:00:00]} 56. Kg3 {[%emt 0:00:12]} Ne4+ {[%emt 0:00:00]} 57. Kf4 {[%emt 0:00:12]} Nxf6 {[%emt 0:00:00]} 58. Kg5 {[%emt 0:00:54]} Ne4+ {[%emt 0:00:00]} 59. Kf4 {[%emt 0:00:14]} Nd6 {[%emt 0:00:00]} 60. Kg5 {[%emt 0:00:15]} Kxb7 {[%emt 0:00:00]} 0-1

[Event "GER-ch Youth U12W 2020"]
[Site "Willingen"]
[Date "2020.10.28"]
[Round "2.19"]
[White "Siegel, Irene"]
[Black "Woiteck, Helena"]
[Result "1-0"]
[ECO "C44"]
[WhiteElo "1380"]
[BlackElo "1092"]
[Annotator "NA RC"]
[PlyCount "59"]
[EventDate "2020.10.27"]
[EventType "swiss"]
[EventRounds "7"]
[EventCountry "GER"]
[SourceTitle "playchess.com"]
[Source "ChessBase"]
[SourceQuality "1"]
[TimeControl "40/5400+30:1800+30"]

1. e4 {[%emt 0:00:00]} e5 {[%emt 0:00:00]} 2. Nf3 {[%emt 0:00:00]} Nc6 {[%emt 0:00:00]} 3. d4 {[%emt 0:00:00]} exd4 {[%emt 0:00:00]} 4. Nxd4 {[%emt 0:00:00]} Nf6 {[%emt 0:00:21]} 5. Nc3 {[%emt 0:00:08]} Bc5 {[%emt 0:00:25]} 6. Be3 {[%emt 0:00:12]} d6 {[%emt 0:01:25]} 7. Be2 {[%emt 0:00:35]} O-O {[%emt 0:00:59]} 8. Nxc6 {[%emt 0:00:17]} bxc6 {[%emt 0:00:43]} 9. Bxc5 {[%emt 0:00:34]} dxc5 {[%emt 0:00:10]} 10. Bd3 {[%emt 0:02:46]} Re8 {[%emt 0:01:17]} 11. Qd2 {[%emt 0:00:52]} Bb7 {[%emt 0:04:37]} 12. O-O-O {[%emt 0:01:32]} Rb8 {[%emt 0:01:53]} 13. e5 {[%emt 0:01:20]} Rxe5 {[%emt 0:01:04]} 14. Bxh7+ {[%emt 0:00:25]} Nxh7 {[%emt 0:01:10]} 15. Qxd8+ {[%emt 0:00:21]} Rxd8 {[%emt 0:00:18]} 16. Rxd8+ {[%emt 0:00:09]} Nf8 {[%emt 0:00:58]} 17. Rhd1 {[%emt 0:03:55]} f6 {[%emt 0:08:44]} 18. R1d7 {[%emt 0:02:09]} Ba6 {[%emt 0:01:42]} 19. Rxc7 {[%emt 0:01:17]} Re1+ {[%emt 0:00:31]} 20. Kd2 {[%emt 0:00:17]} Rh1 {[%emt 0:02:03]} 21. Rxa7 {[%emt 0:00:48]} Bc4 {[%emt 0:00:51]} 22. Raa8 {[%emt 0:00:55]} Kf7 {[%emt 0:03:33]} 23. Rxf8+ {[%emt 0:00:49]} Kg6 {[%emt 0:00:19]} 24. Ra4 {[%emt 0:07:51]} Bf1 {[%emt 0:03:21]} 25. Rg4+ {[%emt 0:02:11]} Kf5 {[%emt 0:00:36]} 26. Rxg7 {[%emt 0:01:07]} Rxh2 {[%emt 0:00:42]} 27. Nd1 {[%emt 0:00:37]} Ba6 {[%emt 0:02:39]} 28. Re8 {[%emt 0:02:47]} Bc4 {[%emt 0:02:30]} 29. Ne3+ {[%emt 0:00:20]} Kf4 30. Rg4# 1-0

[Event "GER-ch Youth U12W 2020"]
[Site "Willingen"]
[Date "2020.10.28"]
[Round "2.20"]
[White "Marrufo, Emilia"]
[Black "Rodermel, Leonie"]
[Result "0-1"]
[ECO "A45"]
[WhiteElo "788"]
[BlackElo "1370"]
[Annotator "NA RC"]
[PlyCount "54"]
[EventDate "2020.10.27"]
[EventType "swiss"]
[EventRounds "7"]
[EventCountry "GER"]
[SourceTitle "playchess.com"]
[Source "ChessBase"]
[SourceQuality "1"]
[TimeControl "40/5400+30:1800+30"]

1. d4 {[%emt 0:00:00]} Nf6 {[%emt 0:00:00]} 2. Bf4 {[%emt 0:00:00]} g6 {[%emt 0:01:41]} 3. e3 {[%emt 0:00:25]} Bg7 {[%emt 0:02:45]} 4. Bd3 {[%emt 0:00:35]} O-O {[%emt 0:01:39]} 5. Nf3 {[%emt 0:01:53]} d6 {[%emt 0:01:17]} 6. h3 {[%emt 0:01:48]} Nbd7 {[%emt 0:06:10]} 7. O-O {[%emt 0:01:21]} Nd5 {[%emt 0:04:59]} 8. c3 {[%emt 0:01:42]} e5 {[%emt 0:09:14]} 9. dxe5 {[%emt 0:04:03]} Nxf4 {[%emt 0:02:15]} 10. exf4 {[%emt 0:01:16]} dxe5 {[%emt 0:00:23]} 11. fxe5 {[%emt 0:01:29]} Nxe5 {[%emt 0:00:27]} 12. Nxe5 {[%emt 0:01:44]} Bxe5 {[%emt 0:00:12]} 13. Qe2 {[%emt 0:01:43]} Re8 {[%emt 0:02:44]} 14. Nd2 {[%emt 0:01:40]} Bh2+ {[%emt 0:00:24]} 15. Kxh2 {[%emt 0:03:41]} Rxe2 {[%emt 0:00:08]} 16. Bxe2 {[%emt 0:00:19]} Qxd2 {[%emt 0:00:17]} 17. Rfe1 {[%emt 0:00:44]} Be6 {[%emt 0:02:02]} 18. Rad1 {[%emt 0:00:43]} Qxb2 {[%emt 0:01:01]} 19. Ra1 {[%emt 0:01:05]} Qxc3 {[%emt 0:01:16]} 20. Rec1 {[%emt 0:02:08]} Qb2 {[%emt 0:01:35]} 21. Bf3 c6 22. Rd1 {[%emt 0:07:39]} Bf5 {[%emt 0:05:19]} 23. g4 {[%emt 0:00:45]} Qxf2+ {[%emt 0:00:24]} 24. Bg2 Be4 25. Rg1 {[%emt 0:03:04]} Qf4+ {[%emt 0:01:37]} 26. Kh1 {[%emt 0:00:26]} Qg3 {[%emt 0:01:58]} 27. Bxe4 {[%emt 0:01:04]} Qxh3# 0-1